bitfinex/quotes_BTCUSD_20220204
["timestamp","ask_amount","ask_price","bid_price","bid_amount"]
[1644008888759,0.04768594,40540.0,40537.0,0.44840506]
[1644008888960,0.04768594,40540.0,40539.0,0.33670706]
[1644008890560,0.04768594,40540.0,40539.0,0.38670706]
[1644008890960,0.4178,40543.0,40539.0,0.38670706]
[1644008891163,0.00082737,40542.0,40539.0,0.11399106]
[1644008891362,0.00082737,40542.0,40540.0,0.00231406]
[1644008891614,0.00082737,40542.0,40539.0,0.061677]
[1644008892008,0.4178,40543.0,40540.0,0.00231406]
[1644008892511,0.4177831,40543.0,40539.0,0.061677]
[1644008892712,0.04768594,40541.0,40539.0,0.061677]
[1644008893111,0.04768594,40541.0,40537.0,0.00231406]
[1644008893312,0.04768594,40541.0,40538.0,0.334411]
[1644008893713,0.04768594,40541.0,40537.0,0.00231406]
[1644008894312,0.04768594,40541.0,40537.0,0.00281406]
[1644008894513,0.04768594,40541.0,40537.0,0.11399306]
[1644008894717,0.04768594,40541.0,40540.0,0.00231406]
[1644008894718,0.04851332,40541.0,40540.0,0.00231406]
[1644008894914,0.04851332,40541.0,40540.0,0.06296206]
[1644008895113,0.05082738,40541.0,40540.0,0.05796206]
[1644008895356,0.05082738,40541.0,40538.0,0.0994]
[1644008895557,0.05082738,40541.0,40538.0,0.1494]
[1644008895758,0.05,40541.0,40538.0,0.1494]
[1644008896159,0.05,40541.0,40539.0,0.061674]
[1644008897465,0.05,40541.0,40540.0,0.21171101]
[1644008897661,0.05,40541.0,40540.0,0.26171101]
[1644008898460,0.05,40541.0,40540.0,0.05]
[1644008899124,0.05,40541.0,40539.0,0.111674]
[1644008899321,0.05,40541.0,40539.0,0.056674]
[1644008900522,0.39063908,40541.0,40539.0,0.056674]
[1644008900726,0.39063908,40541.0,40539.0,0.2118553]
[1644008900924,0.39063908,40541.0,40537.0,0.2118553]
[1644008900925,0.334408,40540.0,40537.0,0.2118553]
[1644008901122,0.05,40538.0,40537.0,0.2118553]
[1644008901720,0.05,40538.0,40536.0,0.2118553]
[1644008902722,0.12632806,40537.0,40536.0,0.2118553]
[1644008904366,0.12632806,40537.0,40536.0,0.2068553]
[1644008904566,0.12632806,40537.0,40533.0,0.26463876]
[1644008904768,0.05,40534.0,40533.0,0.26463876]
[1644008905769,0.05,40534.0,40533.0,0.67329244]
[1644008909813,0.05,40534.0,40533.0,0.40865368]
[1644008915413,0.15790184,40538.0,40533.0,0.40865368]
[1644008915617,0.14200015,40538.0,40534.0,0.21181576]
[1644008917858,1.02748683,40535.0,40534.0,0.21181576]
[1644008918062,1.02748683,40535.0,40529.0,0.21181576]
[1644008918063,1.36189483,40535.0,40529.0,0.21181576]
[1644008918265,0.334408,40534.0,40529.0,0.21181576]
[1644008918460,0.60395687,40534.0,40529.0,0.21181576]
[1644008918660,0.50395687,40534.0,40528.0,0.20681576]
[1644008918961,0.37748683,40535.0,40526.0,0.26463876]
[1644008918962,0.37748683,40535.0,40527.0,0.33981432]
[1644008919161,0.37748683,40535.0,40527.0,0.33962962]
[1644008919162,0.061699,40534.0,40527.0,0.33962962]
[1644008919362,0.47748683,40535.0,40528.0,0.066]
[1644008919561,0.47748683,40535.0,40528.0,0.0661847]
[1644008920261,0.18867407,40534.0,40528.0,0.0001847]
[1644008920462,0.18867407,40534.0,40527.0,0.34000612]
[1644008920864,0.18867407,40534.0,40527.0,0.33917811]
[1644008921262,0.18867407,40534.0,40527.0,0.34000612]
[1644008921710,0.18867407,40534.0,40527.0,0.34019082]
[1644008922208,0.18867407,40534.0,40527.0,0.33936281]
[1644008922409,0.18867407,40534.0,40527.0,0.34019082]
[1644008923010,0.6470357,40535.0,40527.0,0.40188582]
[1644008923011,0.16954887,40535.0,40527.0,0.40188582]
[1644008923210,0.17587443,40537.0,40528.0,0.061692]
[1644008923413,0.24200015,40538.0,40528.0,0.0618767]
[1644008923609,0.24282793,40538.0,40528.0,0.0618767]
[1644008924011,0.24282793,40538.0,40530.0,0.05]
[1644008924409,0.24282793,40538.0,40530.0,0.061688]
[1644008924610,0.14200015,40538.0,40530.0,0.061688]
[1644008924811,0.14282796,40538.0,40530.0,0.061688]
[1644008925211,0.14282796,40538.0,40530.0,0.123377]
[1644008925467,0.14282796,40538.0,40530.0,0.061689]
[1644008925868,0.14200015,40538.0,40530.0,0.061689]
[1644008926071,0.00082781,40538.0,40530.0,0.111689]
[1644008926268,0.00082781,40538.0,40530.0,0.061689]
[1644008926568,0.00082781,40538.0,40530.0,0.111689]
[1644008926968,0.019253,40539.0,40530.0,0.111689]
[1644008927168,0.00082781,40538.0,40530.0,0.111689]
[1644008927369,0.00082781,40538.0,40530.0,0.061689]
[1644008927370,0.334408,40537.0,40530.0,0.061689]
[1644008927570,0.00082781,40538.0,40528.0,0.0001847]
[1644008927571,0.21349037,40536.0,40528.0,0.0001847]
[1644008927771,0.21349037,40536.0,40527.0,0.00082804]
[1644008927971,0.21349037,40536.0,40528.0,0.0001847]
[1644008928169,0.21349037,40536.0,40526.0,0.26482346]
[1644008928370,0.21349037,40536.0,40532.0,0.36986099]
[1644008930210,0.00082781,40538.0,40532.0,0.36986099]
[1644008930411,0.00082781,40538.0,40529.0,0.27345247]
[1644008930613,0.17562176,40539.0,40529.0,0.27345247]
[1644008930812,0.00082782,40538.0,40529.0,0.27345247]
[1644008931411,0.00082782,40538.0,40531.0,0.45672761]
[1644008931912,0.33478443,40538.0,40531.0,0.45672761]
[1644008932413,0.43478443,40538.0,40531.0,0.45672761]
[1644008932862,0.43478443,40538.0,40531.0,0.51841661]
[1644008933063,0.434408,40538.0,40531.0,0.51841661]
[1644008933265,0.43523535,40538.0,40531.0,0.51841661]
[1644008934066,0.43523535,40538.0,40531.0,0.48841661]
[1644008934265,0.434408,40538.0,40531.0,0.48841661]
[1644008934466,0.43523535,40538.0,40531.0,0.45672761]
[1644008934666,0.10082735,40538.0,40531.0,0.45672761]
[1644008934866,0.00082735,40538.0,40531.0,0.45672761]
[1644008935468,0.17562176,40539.0,40531.0,0.45672761]
[1644008935769,0.22187876,40533.0,40529.0,0.061692]
[1644008935972,0.22187876,40533.0,40528.0,0.0001847]
[1644008935973,0.1852009,40532.0,40528.0,0.0001847]
[1644008936168,0.334408,40531.0,40527.0,0.00101228]
[1644008936371,0.434408,40531.0,40527.0,0.00082758]
[1644008936637,0.434408,40531.0,40525.0,0.0001847]
[1644008936823,0.1,40531.0,40527.0,0.00082753]
[1644008937322,0.65,40529.0,40526.0,0.46393026]
[1644008937523,0.334408,40528.0,40526.0,0.46393026]
[1644008937722,0.32818656,40533.0,40526.0,0.46393026]
[1644008937923,0.42818656,40533.0,40526.0,0.46393026]
[1644008939525,0.42818656,40533.0,40526.0,0.44893026]
[1644008940127,0.334408,40532.0,40526.0,0.44893026]
[1644008940362,0.42818656,40533.0,40526.0,0.44893026]
[1644008945213,0.061703,40532.0,40526.0,0.44893026]
[1644008945613,0.11548324,40525.0,40523.0,0.37573976]
[1644008945815,0.11548324,40525.0,40523.0,0.111101]
[1644008946319,0.11548324,40525.0,40519.0,0.28336754]
[1644008946516,0.23321111,40525.0,40519.0,0.01872878]
[1644008946720,0.11548324,40525.0,40519.0,0.01872878]
[1644008947117,0.11548324,40525.0,40521.0,0.45479542]
[1644008948178,0.00037766,40528.0,40523.0,0.05]
[1644008948375,0.00037766,40528.0,40527.0,0.05]
[1644008948577,0.16868727,40535.0,40527.0,0.0494]
[1644008948776,0.00037768,40528.0,40527.0,0.0494]
[1644008949278,0.00037768,40528.0,40527.0,0.0994]
[1644008949474,0.00037768,40528.0,40527.0,0.0494]
[1644008949876,0.43719926,40533.0,40527.0,0.0494]
[1644008950076,0.00082746,40530.0,40527.0,0.0494]
[1644008950477,0.67058469,40533.0,40527.0,0.0494]
[1644008950677,0.57058469,40533.0,40527.0,0.0994]
[1644008950876,0.67058469,40533.0,40527.0,0.0494]
[1644008951077,0.334408,40532.0,40522.0,0.0494]
[1644008951280,0.334408,40532.0,40520.0,0.26463876]
[1644008951281,0.1,40532.0,40520.0,0.26463876]
[1644008951477,0.1,40532.0,40517.0,0.26773876]
[1644008951478,0.061711,40531.0,40517.0,0.26773876]
[1644008951729,0.061711,40531.0,40520.0,0.05]
[1644008952129,0.15047458,40526.0,40520.0,0.05]
[1644008952528,0.52600436,40526.0,40520.0,0.05]
[1644008952830,0.52600436,40526.0,40520.0,0.05018437]
[1644008953231,0.37552978,40526.0,40520.0,0.05018437]
[1644008953430,0.217,40532.0,40520.0,0.05018437]
[1644008953630,0.217,40532.0,40523.0,0.05]
[1644008953831,0.11737762,40532.0,40524.0,0.0494]
[1644008954031,0.00037762,40532.0,40523.0,0.05]
[1644008954229,0.00037762,40532.0,40524.0,0.0494]
[1644008954230,0.14476946,40531.0,40524.0,0.0494]
[1644008954434,0.48995642,40531.0,40524.0,0.04958437]
[1644008954630,0.48995642,40531.0,40524.0,0.11128537]
[1644008954833,0.00082741,40532.0,40527.0,0.05]
[1644008955032,0.00082741,40532.0,40528.0,0.0494]
[1644008955864,0.60018324,40533.0,40528.0,0.0494]
[1644008956064,0.00082744,40532.0,40528.0,0.0494]
[1644008957067,0.4593581,40533.0,40528.0,0.0494]
[1644008957265,0.00082127,40532.0,40528.0,0.0494]
[1644008958265,0.59858161,40533.0,40528.0,0.0494]
[1644008958465,0.00082127,40532.0,40528.0,0.0494]
[1644008958865,0.00082127,40532.0,40529.0,0.05]
[1644008959315,0.00082127,40532.0,40528.0,0.0994]
[1644008959515,0.4593581,40533.0,40528.0,0.0994]
[1644008959720,0.46017936,40533.0,40528.0,0.0994]
[1644008959916,0.1391373,40532.0,40528.0,0.0994]
[1644008960116,0.46017936,40533.0,40528.0,0.0994]
[1644008960316,0.46017936,40533.0,40528.0,0.0494]
[1644008960516,0.4593581,40533.0,40528.0,0.0494]
[1644008960918,0.46018553,40533.0,40528.0,0.0494]
[1644008961117,0.14220517,40532.0,40528.0,0.0494]
[1644008961718,0.46018553,40533.0,40528.0,0.0494]
[1644008961918,0.4593581,40533.0,40528.0,0.0494]
[1644008962118,0.00082744,40532.0,40528.0,0.0494]
[1644008963066,0.61704122,40533.0,40528.0,0.0494]
[1644008963366,0.00082744,40532.0,40528.0,0.0494]
[1644008964267,0.61704122,40533.0,40528.0,0.0494]
[1644008964667,0.00082744,40532.0,40527.0,0.21177445]
[1644008964872,0.00082744,40532.0,40528.0,0.0494]
[1644008965067,0.00082744,40532.0,40528.0,0.0444]
[1644008965267,0.00082744,40532.0,40528.0,0.0442]
[1644008965468,0.71704122,40533.0,40528.0,0.0442]
[1644008965674,0.00082744,40532.0,40526.0,0.21195882]
[1644008965870,0.00082744,40532.0,40526.0,0.21177445]
[1644008966070,0.0007402,40532.0,40527.0,0.0494]
[1644008966713,0.334408,40532.0,40526.0,0.21195882]
[1644008966912,0.1,40532.0,40526.0,0.65217598]
[1644008967116,0.26956935,40532.0,40526.0,0.65217598]
[1644008967312,0.1,40532.0,40526.0,0.65217598]
[1644008967712,0.1,40532.0,40526.0,0.21195882]
[1644008967915,0.1,40532.0,40526.0,0.21177445]
[1644008968114,0.71731966,40533.0,40524.0,0.21195882]
[1644008968312,0.334408,40532.0,40524.0,0.21177445]
[1644008968713,0.334408,40532.0,40525.0,0.45882828]
[1644008968714,0.434408,40532.0,40525.0,0.45882828]
[1644008968912,0.061705,40531.0,40525.0,0.45882828]
[1644008969113,0.60397735,40532.0,40525.0,0.45882828]
[1644008969114,0.1,40532.0,40525.0,0.45882828]
[1644008969312,0.26956935,40532.0,40525.0,0.45882828]
[1644008969511,0.1,40532.0,40525.0,0.45882828]
[1644008969712,0.334408,40532.0,40525.0,0.45882828]
[1644008969913,0.434408,40532.0,40525.0,0.45882828]
[1644008970117,0.60397735,40532.0,40525.0,0.45882828]
[1644008970365,0.434408,40532.0,40526.0,0.00082755]
[1644008970565,0.334408,40530.0,40526.0,0.00082755]
[1644008970967,0.434408,40530.0,40526.0,0.00082755]
[1644008971366,0.434408,40530.0,40523.0,0.00018437]
[1644008971565,0.1,40530.0,40526.0,0.00082754]
[1644008971968,0.25851052,40533.0,40526.0,0.00082754]
[1644008972167,0.01800731,40530.0,40526.0,0.00082754]
[1644008972669,0.01800731,40530.0,40525.0,0.00018437]
[1644008972868,0.01800731,40530.0,40526.0,0.00082754]
[1644008973669,0.334408,40529.0,40526.0,0.00082754]
[1644008973869,0.334408,40529.0,40521.0,0.00018437]
[1644008973870,0.04934538,40528.0,40521.0,0.00018437]
[1644008974126,0.161712,40529.0,40520.0,0.00018437]
[1644008974417,0.161712,40529.0,40519.0,0.45789791]
[1644008974418,0.38573912,40527.0,40519.0,0.45789791]
[1644008974616,0.38573912,40527.0,40519.0,0.45808228]
[1644008974817,0.48573912,40527.0,40519.0,0.45808228]
[1644008975222,0.07682663,40525.0,40521.0,0.00042957]
[1644008975421,0.37035165,40524.0,40521.0,0.00042957]
[1644008975620,0.37035165,40524.0,40517.0,0.0031]
[1644008975621,0.334408,40523.0,40517.0,0.0031]
[1644008975821,0.1,40523.0,40517.0,0.0031]
[1644008976223,0.334408,40522.0,40517.0,0.0031]
[1644008976420,0.434408,40522.0,40517.0,0.0031]
[1644008976621,0.96908387,40520.0,40517.0,0.0031]
[1644008976820,1.11908387,40520.0,40517.0,0.0031]
[1644008978374,0.334408,40519.0,40517.0,0.0031]
[1644008978769,0.434408,40519.0,40517.0,0.0031]
[1644008978973,0.334408,40519.0,40517.0,0.0031]
[1644008979170,0.33264969,40520.0,40517.0,0.0031]
[1644008979973,0.334408,40519.0,40517.0,0.0031]
[1644008980375,0.434408,40519.0,40517.0,0.0031]
[1644008980572,0.43264969,40520.0,40517.0,0.0031]
[1644008980772,0.33264969,40520.0,40517.0,0.0031]
[1644008980972,0.43264969,40520.0,40517.0,0.0031]
[1644008981173,0.334408,40519.0,40517.0,0.0031]
[1644008981376,0.1,40519.0,40517.0,0.0031]
[1644008982414,0.33264969,40520.0,40517.0,0.0031]
[1644008982614,0.43264969,40520.0,40517.0,0.0031]
[1644008984015,0.33264969,40520.0,40517.0,0.0031]
[1644008985672,0.43264969,40520.0,40517.0,0.0031]
[1644008986569,0.061716,40523.0,40517.0,0.0531]
[1644008986871,0.5701938,40524.0,40517.0,0.0531]
[1644008986872,0.54454151,40524.0,40517.0,0.0531]
[1644008987070,0.37493148,40524.0,40517.0,0.0031]
[1644008987270,0.37493148,40524.0,40518.0,0.00078063]
[1644008987671,0.37864473,40520.0,40518.0,0.00078063]
[1644008987871,0.37864473,40520.0,40519.0,0.0010863]
[1644008987872,0.47864473,40520.0,40519.0,0.0010863]
[1644008988572,0.81305273,40520.0,40519.0,0.0010863]
[1644008993168,1.384408,40519.0,40518.0,0.00127022]
[1644008993372,0.434408,40519.0,40518.0,0.0010863]
[1644008997937,0.12321601,40522.0,40517.0,0.05328392]
[1644008998138,0.1,40519.0,40517.0,0.0531]
[1644008998338,0.12321601,40522.0,40517.0,0.00328392]
[1644008998542,0.334408,40521.0,40518.0,0.05]
[1644008998941,0.334408,40521.0,40520.0,0.05]
[1644009000369,0.334408,40521.0,40518.0,0.00018392]
[1644009000571,0.334408,40523.0,40518.0,0.00078352]
[1644009000773,0.434408,40523.0,40518.0,0.00096744]
[1644009001372,0.55225691,40523.0,40518.0,0.00096744]
[1644009001571,0.55225691,40523.0,40518.0,0.00018392]
[1644009001774,0.55225691,40523.0,40518.0,0.00078352]
[1644009001973,0.54854823,40523.0,40518.0,0.00096744]
[1644009002574,0.43069932,40523.0,40520.0,0.05]
[1644009003173,0.43069932,40523.0,40520.0,0.05205768]
[1644009003373,0.43069932,40523.0,40522.0,0.05]
[1644009003573,0.58898465,40523.0,40521.0,0.00018392]
[1644009003777,0.58898465,40523.0,40520.0,0.0022416]
[1644009003974,0.58898465,40523.0,40520.0,0.00205768]
[1644009004417,0.58898465,40523.0,40520.0,0.0022416]
[1644009005318,0.58898465,40523.0,40520.0,0.00205768]
[1644009005517,0.58898465,40523.0,40520.0,0.0022416]
[1644009005718,0.58983553,40523.0,40517.0,0.04914912]
[1644009005916,0.58983553,40523.0,40517.0,0.04933304]
[1644009007418,0.48983553,40523.0,40517.0,0.04933304]
[1644009007616,0.58983553,40523.0,40517.0,0.04933304]
[1644009008373,0.3315502,40523.0,40517.0,0.04933304]
[1644009008774,0.10085088,40523.0,40517.0,0.04933304]
[1644009008979,0.1,40523.0,40517.0,0.05011659]
[1644009009174,0.00085088,40520.0,40517.0,0.05011659]
[1644009009975,0.00085088,40520.0,40517.0,0.04933304]
[1644009012016,0.15368529,40519.0,40517.0,0.04933304]
[1644009012218,0.15368529,40519.0,40516.0,0.00128392]
[1644009012418,0.15368529,40519.0,40516.0,0.00098392]
[1644009012617,0.00085088,40517.0,40516.0,0.0008]
[1644009012918,0.00085088,40517.0,40516.0,0.00098392]
[1644009013116,0.00085088,40517.0,40516.0,0.0008]
[1644009019122,0.00085088,40517.0,40516.0,0.04994912]
[1644009021320,0.00085088,40517.0,40516.0,0.0008]
[1644009025773,0.00085088,40517.0,40516.0,0.0009482]
[1644009025973,0.35198143,40517.0,40516.0,0.0009482]
[1644009026175,0.68643443,40517.0,40516.0,0.0009482]
[1644009026375,0.43530388,40517.0,40516.0,0.0009482]
[1644009026621,0.10085088,40517.0,40516.0,0.0009482]
[1644009027418,0.00085088,40517.0,40516.0,0.0009482]
[1644009028218,0.37023096,40517.0,40516.0,0.0009482]
[1644009028418,0.80468396,40517.0,40516.0,0.0009482]
[1644009035729,0.334453,40515.0,40507.0,0.004233]
[1644009035929,0.05,40510.0,40507.0,0.004233]
[1644009036329,0.05,40510.0,40507.0,0.0011]
[1644009038269,0.05,40514.0,40507.0,0.0011]
[1644009038472,0.05,40514.0,40508.0,0.061721]
[1644009038872,0.05,40514.0,40509.0,0.00078309]
[1644009040073,0.05,40514.0,40508.0,0.061721]
[1644009040280,0.05,40514.0,40507.0,0.26600954]
[1644009040281,0.05,40511.0,40509.0,0.00078309]
[1644009041173,0.05,40511.0,40507.0,0.0011]
[1644009041375,0.05,40511.0,40508.0,0.00078309]
[1644009042238,0.07786376,40509.0,40508.0,0.00078309]
[1644009042438,0.05,40511.0,40507.0,0.0011]
[1644009042842,0.12626517,40510.0,40507.0,0.0011]
[1644009043039,0.34009442,40509.0,40507.0,0.0011]
[1644009043243,1.634453,40508.0,40507.0,0.0011]
[1644009043440,0.484453,40508.0,40507.0,0.0011]
[1644009044641,0.061728,40511.0,40508.0,1.4]
[1644009044642,0.123463,40511.0,40508.0,1.4]
[1644009044844,0.05,40512.0,40509.0,0.51980216]
[1644009045043,0.21964673,40517.0,40509.0,0.04954821]
[1644009045243,0.17000245,40519.0,40509.0,0.04954821]
[1644009045479,0.05,40517.0,40509.0,0.04954821]
[1644009045675,0.05,40517.0,40509.0,0.50177834]
[1644009045876,0.05,40517.0,40510.0,0.061712]
[1644009046075,0.05,40517.0,40511.0,0.0494]
[1644009046275,0.05,40517.0,40511.0,0.05034992]
[1644009046875,0.14839894,40513.0,40511.0,0.05034992]
[1644009047276,0.14839894,40513.0,40511.0,0.04954821]
[1644009047475,0.05,40517.0,40511.0,0.04954821]
[1644009047674,0.334481,40516.0,40511.0,0.04954821]
[1644009048477,0.12838259,40515.0,40511.0,0.04954821]
[1644009048677,0.12838259,40515.0,40511.0,0.05034991]
[1644009048877,0.066483,40517.0,40511.0,0.05034991]
[1644009049128,0.334481,40516.0,40511.0,0.11206591]
[1644009049521,0.334481,40516.0,40511.0,0.11126421]
[1644009049721,0.334481,40516.0,40511.0,0.11204353]
[1644009050522,0.334481,40516.0,40511.0,0.17375853]
[1644009050727,0.334481,40515.0,40511.0,0.17297921]
[1644009050923,0.016483,40517.0,40511.0,0.17375855]
[1644009051124,0.05,40512.0,40511.0,0.11204355]
[1644009051323,0.05,40512.0,40511.0,0.11222685]
[1644009051523,0.05,40512.0,40511.0,0.11204355]
[1644009051925,0.05,40512.0,40511.0,0.11126423]
[1644009052977,0.05,40512.0,40511.0,0.04954823]
[1644009054176,0.05,40512.0,40511.0,0.43947824]
[1644009054977,0.05,40512.0,40511.0,0.22765015]
[1644009055376,0.05,40512.0,40511.0,0.43952886]
[1644009055578,0.05,40512.0,40511.0,0.26142694]
[1644009056630,0.05,40512.0,40511.0,0.43878272]
[1644009057024,0.05,40512.0,40511.0,0.22690401]
[1644009057223,0.05,40516.0,40511.0,0.22690401]
[1644009057422,0.05,40516.0,40512.0,0.2118914]
[1644009057622,0.05,40516.0,40512.0,0.21222293]
[1644009058023,0.05,40516.0,40514.0,0.35379196]
[1644009058227,0.05,40516.0,40514.0,0.35394019]
[1644009059022,0.334481,40515.0,40514.0,0.00014823]
[1644009064823,0.05,40516.0,40514.0,0.32314863]
[1644009065024,0.05,40516.0,40515.0,0.18332631]
[1644009065221,0.05,40516.0,40515.0,0.23287454]
[1644009066023,0.05,40516.0,40513.0,0.32360458]
[1644009066223,0.05,40516.0,40514.0,0.0494]
[1644009066824,0.05,40516.0,40514.0,0.26129458]
[1644009067326,0.05,40516.0,40514.0,0.32300358]
[1644009070176,0.05,40516.0,40514.0,0.111109]
[1644009071920,0.05,40516.0,40514.0,0.106109]
[1644009072222,0.05,40516.0,40514.0,0.0494]
[1644009073120,0.05,40516.0,40515.0,0.00065759]
[1644009073121,0.04934241,40516.0,40515.0,0.00065759]
[1644009073321,0.38382341,40516.0,40515.0,0.00065759]
[1644009075371,0.334481,40516.0,40515.0,0.00065759]
[1644009075573,0.016483,40517.0,40515.0,0.06236659]
[1644009075773,0.016483,40517.0,40516.0,0.0494]
[1644009076173,0.016483,40517.0,40516.0,0.0994]
[1644009076373,0.016483,40517.0,40516.0,0.0494]
[1644009076573,0.350964,40517.0,40516.0,0.0494]
[1644009076974,0.350964,40517.0,40512.0,0.00044622]
[1644009076975,0.53826892,40517.0,40512.0,0.00044622]
[1644009077173,0.53826892,40517.0,40509.0,0.38118886]
[1644009077174,0.59934241,40513.0,40510.0,0.21191109]
[1644009077375,0.04934241,40513.0,40510.0,0.00065759]
[1644009077773,0.11650245,40512.0,40510.0,0.00065759]
[1644009077972,0.04934241,40513.0,40510.0,0.00065759]
[1644009078173,0.116483,40517.0,40510.0,0.21256868]
[1644009078373,0.334481,40516.0,40515.0,0.00065759]
[1644009078573,0.334481,40516.0,40511.0,0.21256868]
[1644009078874,0.04934241,40515.0,40511.0,0.00065759]
[1644009079129,0.04934241,40515.0,40510.0,0.21191109]
[1644009079327,0.04934241,40515.0,40510.0,0.21256868]
[1644009079525,0.46385096,40516.0,40510.0,0.21256868]
[1644009079724,0.46385096,40516.0,40510.0,0.21191109]
[1644009079924,0.46385096,40516.0,40515.0,0.00065759]
[1644009080125,0.84767437,40516.0,40515.0,0.00065759]
[1644009080425,0.84767437,40516.0,40511.0,0.00065759]
[1644009080627,0.04934241,40513.0,40511.0,0.00065759]
[1644009081025,0.04934241,40513.0,40511.0,0.00148114]
[1644009081929,0.04934241,40513.0,40511.0,0.00065759]
[1644009085979,0.04934241,40513.0,40511.0,0.21256868]
[1644009087826,0.04934241,40513.0,40511.0,0.21191109]
[1644009089030,0.016483,40517.0,40512.0,0.21191109]
[1644009089231,0.016483,40517.0,40516.0,0.00065759]
[1644009089630,0.06582541,40517.0,40514.0,0.21191109]
[1644009089834,0.06582541,40517.0,40513.0,0.21191109]
[1644009090030,0.06582541,40517.0,40514.0,0.00065759]
[1644009090231,0.334481,40516.0,40513.0,0.21191109]
[1644009090477,0.04934241,40514.0,40513.0,0.21191109]
[1644009091578,0.04934241,40514.0,40512.0,0.26507194]
[1644009091778,0.04934241,40514.0,40512.0,0.26488886]
[1644009092380,0.04934241,40514.0,40513.0,0.34230172]
[1644009094928,0.016483,40517.0,40513.0,0.34295931]
[1644009095131,0.016483,40517.0,40516.0,0.00065759]
[1644009095326,0.016483,40517.0,40516.0,0.05005759]
[1644009095525,0.016483,40517.0,40516.0,0.26202404]
[1644009095926,0.35694216,40522.0,40516.0,0.31136496]
[1644009096127,0.18730492,40522.0,40517.0,0.21196496]
[1644009096327,0.334481,40521.0,40518.0,0.08976845]
[1644009096527,0.1,40522.0,40518.0,0.08976845]
[1644009097332,0.42653508,40524.0,40518.0,0.08976845]
[1644009097534,0.334481,40523.0,40519.0,0.05]
[1644009097730,0.334481,40523.0,40519.0,0.0994]
[1644009097979,0.33485873,40523.0,40519.0,0.0994]
[1644009098779,0.334481,40523.0,40519.0,0.0994]
[1644009099179,0.33485873,40523.0,40519.0,0.0994]
[1644009099382,0.54493476,40523.0,40519.0,0.0994]
[1644009099782,0.33485873,40523.0,40519.0,0.0994]
[1644009100085,0.334481,40523.0,40519.0,0.0994]
[1644009100282,0.54537808,40523.0,40519.0,0.0994]
[1644009100783,0.54537808,40523.0,40519.0,0.0494]
[1644009100981,0.54537808,40523.0,40518.0,0.04036845]
[1644009101483,0.81501532,40523.0,40516.0,0.21196496]
[1644009102332,0.81419427,40523.0,40516.0,0.21196496]
[1644009102735,0.00082107,40522.0,40516.0,0.21196496]
[1644009102935,0.00082107,40522.0,40515.0,0.21196496]
[1644009103535,0.31007603,40523.0,40515.0,0.21196496]
[1644009103734,0.21007603,40523.0,40515.0,0.21196496]
[1644009103936,0.00082107,40521.0,40515.0,0.21196496]
[1644009104534,0.00082107,40521.0,40515.0,0.27367696]
[1644009104935,0.31007603,40523.0,40515.0,0.27367696]
[1644009104936,0.334481,40522.0,40515.0,0.21196496]
[1644009105381,0.434481,40522.0,40515.0,0.21196496]
[1644009105578,0.434481,40522.0,40515.0,0.26196496]
[1644009106078,0.434481,40522.0,40515.0,0.21196496]
[1644009106279,0.00082065,40521.0,40517.0,0.05]
[1644009106481,0.334481,40520.0,40517.0,0.04179555]
[1644009106679,0.00820445,40518.0,40515.0,0.21196496]
[1644009106879,0.00820445,40518.0,40517.0,0.04179555]
[1644009107983,0.00820445,40518.0,40516.0,0.061713]
[1644009108180,0.00820445,40518.0,40515.0,0.21196496]
[1644009109227,0.00820445,40518.0,40515.0,0.27367696]
[1644009109429,0.00820445,40518.0,40517.0,0.04179555]
[1644009109626,0.00820445,40518.0,40515.0,0.27367696]
[1644009109829,0.00820445,40518.0,40515.0,0.31547251]
[1644009110428,0.00820445,40518.0,40516.0,0.06171]
[1644009111434,0.00082064,40521.0,40517.0,0.06171]
[1644009111631,0.00082064,40521.0,40519.0,0.04179555]
[1644009112033,0.334481,40522.0,40519.0,0.04179555]
[1644009112233,0.334481,40522.0,40516.0,0.25376051]
[1644009112234,0.00820445,40520.0,40516.0,0.25376051]
[1644009112631,0.00820445,40520.0,40516.0,0.30376051]
[1644009113777,0.00820445,40520.0,40517.0,0.21196496]
[1644009114783,0.00820445,40520.0,40516.0,0.36547151]
[1644009116182,0.00820445,40520.0,40516.0,0.31547151]
[1644009116385,0.00082065,40521.0,40516.0,0.31547151]
[1644009116638,0.00082065,40521.0,40516.0,0.04179555]
[1644009116833,0.00082065,40521.0,40514.0,0.21196496]
[1644009116834,0.00820445,40517.0,40514.0,0.21196496]
[1644009117033,0.27123596,40517.0,40514.0,0.00082079]
[1644009117233,0.18726448,40517.0,40514.0,0.00082079]
[1644009117646,0.00820445,40517.0,40514.0,0.00082079]
[1644009118034,0.00820445,40517.0,40512.0,0.21214804]
[1644009118233,0.15608279,40518.0,40512.0,0.21214804]
[1644009118234,0.00820445,40513.0,40512.0,0.21214804]
[1644009118438,0.00820445,40513.0,40512.0,0.21196496]
[1644009118635,0.00820445,40513.0,40511.0,0.25394359]
[1644009118837,0.00820445,40513.0,40512.0,0.21196496]
[1644009119235,0.00820445,40513.0,40511.0,0.25394359]
[1644009119435,0.00820445,40513.0,40511.0,0.27272359]
[1644009119635,0.00820445,40513.0,40511.0,0.23092804]
[1644009120137,0.00820445,40513.0,40512.0,0.27368196]
[1644009120379,0.00820445,40513.0,40511.0,0.23111112]
[1644009120578,0.00820445,40513.0,40511.0,0.23092804]
[1644009121380,0.00820445,40513.0,40512.0,0.21196496]
[1644009122782,0.00820445,40513.0,40512.0,0.25376051]
[1644009122981,0.00820445,40513.0,40512.0,0.04179555]
[1644009123384,0.00820445,40513.0,40512.0,0.31545727]
[1644009123587,0.00820445,40513.0,40512.0,0.10351255]
[1644009123786,0.00820445,40513.0,40512.0,0.31545473]
[1644009123985,0.00820445,40513.0,40512.0,0.25373773]
[1644009124225,0.00820445,40513.0,40512.0,0.21194218]
[1644009124424,0.00820445,40513.0,40512.0,0.25373773]
[1644009124629,0.35561373,40513.0,40511.0,0.21212526]
[1644009124827,0.35561373,40513.0,40509.0,0.21212526]
[1644009125026,0.56838344,40512.0,40510.0,0.00018308]
[1644009125226,1.784481,40510.0,40509.0,0.10949776]
[1644009125429,1.784481,40510.0,40508.0,0.00018308]
[1644009125430,0.434481,40510.0,40508.0,0.00018308]
[1644009125627,1.70434653,40509.0,40507.0,0.00128308]
[1644009125827,0.84268545,40508.0,40507.0,0.0011]
[1644009126029,0.334481,40506.0,40504.0,0.00278954]
[1644009126231,0.00820445,40508.0,40504.0,0.00278954]